bitfinex/quotes_BTCUSD_20240717
["timestamp","ask_amount","ask_price","bid_price","bid_amount"]
[1721249972726,1.676385,64614.0,64613.0,0.009185]
[1721249972934,1.676385,64614.0,64600.0,0.0126489]
[1721249972935,0.464388,64601.0,64600.0,0.0126489]
[1721249973165,0.675688,64601.0,64600.0,0.0126489]
[1721249973371,1.34119764,64601.0,64600.0,0.0126489]
[1721249973775,1.294872,64601.0,64600.0,0.0126489]
[1721249974315,1.299872,64601.0,64600.0,0.0126489]
[1721249974636,1.294872,64601.0,64600.0,0.0126489]
[1721249975045,1.299872,64601.0,64600.0,0.0126489]
[1721249976067,1.305872,64601.0,64600.0,0.0126489]
[1721249976519,1.300872,64601.0,64600.0,0.0126489]
[1721249976861,1.219572,64601.0,64600.0,0.0126489]
[1721249977048,1.307872,64601.0,64600.0,0.0126489]
[1721249977668,0.267796,64601.0,64600.0,0.0126489]
[1721249977881,0.2013,64601.0,64600.0,0.1519489]
[1721249978086,0.2013,64601.0,64600.0,0.16714379]
[1721249979025,0.356096,64601.0,64600.0,0.16714379]
[1721249979233,0.113,64601.0,64600.0,0.1519489]
[1721249979434,0.1013,64601.0,64600.0,0.1519489]
[1721249979647,0.2013,64601.0,64600.0,0.1519489]
[1721249980230,0.1883,64601.0,64600.0,0.1519489]
[1721249980425,0.1883,64601.0,64600.0,0.30633064]
[1721249980624,0.0883,64601.0,64600.0,0.3419637]
[1721249982359,0.0883,64604.0,64601.0,0.1436]
[1721249982565,0.0883,64604.0,64603.0,0.142]
[1721249983628,0.0913,64604.0,64603.0,0.142]
[1721249983812,0.0943,64604.0,64603.0,0.142]
[1721249984032,0.0883,64604.0,64603.0,0.33084811]
[1721249984511,0.0903,64604.0,64603.0,0.33084811]
[1721249999787,0.002,64604.0,64603.0,0.33084811]
[1721249999989,0.0903,64604.0,64603.0,0.33084811]
[1721250000393,0.0903,64604.0,64603.0,0.45939193]
[1721250001791,0.0903,64604.0,64603.0,0.50939193]
[1721250002355,0.0903,64604.0,64603.0,0.50939152]
[1721250003814,0.0903,64604.0,64603.0,0.45939152]
[1721250005397,0.0903,64604.0,64603.0,0.33084811]
[1721250005603,0.0903,64604.0,64603.0,0.45939084]
[1721250008552,0.0903,64604.0,64600.0,0.0126489]
[1721250008553,0.2329,64604.0,64600.0,0.0126489]
[1721250008758,0.154796,64601.0,64600.0,0.0126489]
[1721250009032,0.15484,64583.0,64578.0,0.16900535]
[1721250009181,0.1,64582.0,64579.0,0.14549614]
[1721250009386,0.0883,64580.0,64579.0,0.01690054]
[1721250009585,0.0883,64580.0,64571.0,0.0615]
[1721250009745,0.0883,64575.0,64574.0,0.27787122]
[1721250010444,0.0883,64578.0,64575.0,0.05]
[1721250010595,0.0883,64583.0,64576.0,0.15438174]
[1721250010893,0.0883,64583.0,64577.0,0.04152712]
[1721250011130,0.0883,64583.0,64578.0,0.15717574]
[1721250011474,0.254827,64588.0,64578.0,0.15717574]
[1721250011475,0.0883,64580.0,64578.0,0.15717574]
[1721250011716,0.0883,64580.0,64578.0,0.15438174]
[1721250011918,0.0883,64580.0,64579.0,0.01959089]
[1721250012119,0.0883,64580.0,64579.0,0.17397263]
[1721250012320,0.002,64583.0,64579.0,0.17397263]
[1721250012582,0.001,64583.0,64580.0,0.15438174]
[1721250013090,0.1,64587.0,64579.0,0.01959089]
[1721250013091,0.309668,64586.0,64579.0,0.01959089]
[1721250013293,0.15484,64583.0,64579.0,0.15438174]
[1721250013492,0.1,64582.0,64579.0,0.15438174]
[1721250014645,0.101,64583.0,64579.0,0.15438174]
[1721250014878,0.001,64582.0,64579.0,0.16981991]
[1721250016012,0.002,64582.0,64579.0,0.16981991]
[1721250016161,0.002,64582.0,64579.0,0.15438174]
[1721250016382,0.001,64582.0,64579.0,0.15438174]
[1721250017378,0.002,64582.0,64579.0,0.15438174]
[1721250018656,0.156842,64582.0,64579.0,0.15438174]
[1721250018801,0.1,64581.0,64579.0,0.01543817]
[1721250019015,0.154846,64580.0,64571.0,0.0615]
[1721250019219,0.1,64579.0,64574.0,0.15431382]
[1721250020364,0.154844,64581.0,64574.0,0.15431382]
[1721250020365,0.1,64580.0,64574.0,0.15431382]
[1721250020608,0.001,64579.0,64575.0,0.02982138]
[1721250020773,0.001,64579.0,64576.0,0.15438174]
[1721250021406,0.1,64580.0,64576.0,0.15438174]
[1721250021962,0.1,64580.0,64575.0,0.02982138]
[1721250021963,0.154856,64576.0,64575.0,0.02982138]
[1721250022170,0.154856,64576.0,64569.0,0.009185]
[1721250022171,1.084093,64570.0,64569.0,0.009185]
[1721250022371,1.16126779,64570.0,64569.0,0.009185]
[1721250022597,1.28426779,64570.0,64569.0,0.009185]
[1721250022871,1.207093,64570.0,64569.0,0.009185]
[1721250023079,1.516834,64570.0,64569.0,0.009185]
[1721250023280,1.6711075,64570.0,64569.0,0.009185]
[1721250023502,1.51675793,64570.0,64569.0,0.009185]
[1721250023705,1.58245793,64570.0,64569.0,0.009185]
[1721250023986,1.73683967,64570.0,64569.0,0.009185]
[1721250024221,1.86534437,64570.0,64569.0,0.009185]
[1721250024477,2.04653967,64570.0,64569.0,0.009185]
[1721250025211,2.05353967,64570.0,64569.0,0.009185]
[1721250026468,1.58941693,64570.0,64569.0,0.009185]
[1721250027428,0.90716131,64570.0,64566.0,0.009185]
[1721250027644,0.154916,64551.0,64550.0,0.009185]
[1721250027871,0.254916,64551.0,64550.0,0.009185]
[1721250029821,0.001,64551.0,64550.0,0.025152]
[1721250030556,0.1,64551.0,64550.0,0.025152]
[1721250030787,0.101,64551.0,64550.0,0.025152]
[1721250031425,0.101,64551.0,64550.0,0.009185]
[1721250031636,0.465748,64551.0,64550.0,0.009185]
[1721250031770,0.787048,64551.0,64550.0,0.009185]
[1721250032192,1.09688,64551.0,64550.0,0.009185]
[1721250032392,0.786048,64551.0,64550.0,0.009185]
[1721250032623,0.1,64551.0,64550.0,0.009185]
[1721250033175,0.001,64551.0,64550.0,0.009185]
[1721250034243,0.154901,64557.0,64550.0,0.009185]
[1721250034477,0.1,64556.0,64550.0,0.009185]
[1721250034848,0.001,64551.0,64550.0,0.085585]
[1721250035135,0.001,64551.0,64550.0,0.095062]
[1721250035869,0.1,64557.0,64550.0,0.095062]
[1721250036476,0.254898,64559.0,64550.0,0.095062]
[1721250036687,0.154899,64558.0,64550.0,0.095062]
[1721250036883,0.001,64551.0,64550.0,0.095062]
[1721250037089,0.002,64556.0,64550.0,0.095062]
[1721250037286,0.002,64556.0,64551.0,0.0104247]
[1721250037496,0.103,64557.0,64551.0,0.0104247]
[1721250037905,0.1,64557.0,64552.0,0.0626]
[1721250038108,0.004,64558.0,64552.0,0.0626]
[1721250038401,0.254897,64559.0,64552.0,0.0626]
[1721250038577,0.254897,64559.0,64552.0,0.07937947]
[1721250038792,0.003,64557.0,64552.0,0.07937947]
[1721250040220,0.005,64559.0,64552.0,0.07937947]
[1721250040462,0.154897,64559.0,64552.0,0.07937947]
[1721250040709,0.1,64558.0,64552.0,0.07937947]
[1721250040985,0.254901,64558.0,64552.0,0.07937947]
[1721250042357,0.257901,64558.0,64552.0,0.0626]
[1721250043266,0.257901,64558.0,64550.0,0.085585]
[1721250044115,0.259901,64558.0,64550.0,0.085585]
[1721250044284,0.257901,64558.0,64550.0,0.085585]
[1721250044488,0.257901,64558.0,64551.0,0.015887]
[1721250044709,0.154902,64557.0,64551.0,0.015887]
[1721250045028,0.1,64556.0,64551.0,0.015887]
[1721250046359,0.102,64556.0,64551.0,0.015887]
[1721250046759,0.102,64556.0,64550.0,0.085585]
[1721250047198,0.464748,64551.0,64550.0,0.009185]
[1721250047660,0.564748,64551.0,64550.0,0.009185]
[1721250048489,0.566748,64551.0,64550.0,0.009185]
[1721250049504,0.569748,64551.0,64550.0,0.009185]
[1721250049869,0.564748,64551.0,64550.0,0.009185]
[1721250050073,0.88158,64551.0,64550.0,0.009185]
[1721250050270,1.191412,64551.0,64550.0,0.009185]
[1721250050513,1.184412,64551.0,64550.0,0.009185]
[1721250050918,1.192412,64551.0,64550.0,0.009185]
[1721250051326,1.215412,64551.0,64550.0,0.009185]
[1721250051532,1.30289444,64551.0,64550.0,0.009185]
[1721250051759,1.30689444,64551.0,64550.0,0.009185]
[1721250052281,1.30289444,64551.0,64550.0,0.009185]
[1721250052488,1.30689444,64551.0,64550.0,0.009185]
[1721250053311,1.215412,64551.0,64550.0,0.009185]
[1721250054187,0.90558,64551.0,64550.0,0.009185]
[1721250055285,1.05128,64551.0,64550.0,0.009185]
[1721250055487,1.71220134,64551.0,64550.0,0.009185]
[1721250055785,0.46482,64541.0,64540.0,0.0001]
[1721250055916,2.08604653,64541.0,64540.0,0.0001]
[1721250056151,2.08604653,64541.0,64525.0,0.002794]
[1721250056152,0.867755,64539.0,64525.0,0.002794]
[1721250056342,1.56651,64526.0,64525.0,0.002794]
[1721250056554,1.56651,64526.0,64522.0,0.01]
[1721250056555,0.557979,64523.0,64522.0,0.01]
[1721250056767,0.557979,64523.0,64522.0,0.00386456]
[1721250056768,1.52346409,64523.0,64522.0,0.00386456]
[1721250056980,1.56337229,64523.0,64522.0,0.00386456]
[1721250057188,1.67659274,64523.0,64522.0,0.00386456]
[1721250058217,1.584968,64518.0,64517.0,0.1]
[1721250058417,1.95537974,64518.0,64517.0,0.1]
[1721250058830,1.05235874,64518.0,64517.0,0.1]
[1721250059026,0.897977,64518.0,64517.0,0.1]
[1721250059915,0.587986,64518.0,64517.0,0.1109185]
[1721250060089,0.601986,64518.0,64517.0,0.1109185]
[1721250060299,0.1,64518.0,64517.0,0.1109185]
[1721250060530,0.30298174,64518.0,64517.0,0.1]
[1721250060833,0.30298174,64518.0,64504.0,0.009185]
[1721250060834,0.868162,64505.0,64504.0,0.009185]
[1721250061050,0.868162,64505.0,64477.0,0.46304871]
[1721250061051,0.5,64498.0,64477.0,0.46304871]
[1721250061199,0.5,64498.0,64471.0,0.0612]
[1721250061200,1.949634,64498.0,64471.0,0.0612]
[1721250061405,0.46521,64487.0,64486.0,0.0429]
[1721250061617,1.53707174,64487.0,64486.0,0.0429]
[1721250061860,1.66007174,64487.0,64486.0,0.0429]
[1721250062066,1.58417174,64487.0,64486.0,0.0429]
[1721250062773,0.58821,64487.0,64486.0,0.0429]
[1721250062975,0.25507,64487.0,64486.0,0.0429]
[1721250063184,0.11,64487.0,64486.0,0.1212585]
[1721250063600,0.01,64487.0,64486.0,0.1212585]
[1721250064654,0.02,64487.0,64486.0,0.1212585]
[1721250064837,0.01,64487.0,64486.0,0.1212585]
[1721250065039,0.009,64487.0,64486.0,0.1212585]
[1721250065368,0.001,64487.0,64486.0,0.1212585]
[1721250065576,0.002,64487.0,64486.0,0.1212585]
[1721250066414,0.002,64487.0,64486.0,0.27874125]
[1721250066614,0.1,64494.0,64486.0,0.27564024]
[1721250066819,0.1,64494.0,64487.0,0.047144]
[1721250067028,0.1,64494.0,64488.0,0.15438174]
[1721250067240,0.310041,64508.0,64489.0,0.145394]
[1721250067241,0.2774,64507.0,64489.0,0.145394]
[1721250067466,0.46304871,64504.0,64490.0,0.15438174]
[1721250067692,0.432406,64514.0,64494.0,0.05]
[1721250067896,0.432406,64514.0,64493.0,0.15607479]
[1721250067897,0.2774,64514.0,64495.0,0.21997574]
[1721250068128,0.155019,64509.0,64495.0,0.21997574]
[1721250068309,0.155019,64509.0,64496.0,0.0421089]
[1721250068509,0.155019,64509.0,64497.0,0.15717574]
[1721250068906,0.008,64504.0,64497.0,0.15717574]
[1721250069204,0.1,64508.0,64497.0,0.15717574]
[1721250069444,0.013,64509.0,64498.0,0.03409846]
[1721250069642,0.1,64511.0,64499.0,0.002794]
[1721250069853,0.2774,64522.0,64500.0,0.34648202]
[1721250070067,0.013,64509.0,64501.0,0.065594]
[1721250070274,0.013,64509.0,64503.0,0.0628]
[1721250070480,0.013,64509.0,64504.0,0.19520333]
[1721250070907,0.013,64509.0,64505.0,0.139]
[1721250071101,0.013,64509.0,64507.0,0.0655]
[1721250071318,0.46304871,64521.0,64508.0,0.15717574]
[1721250071519,0.46304871,64521.0,64508.0,0.16027557]
[1721250071787,0.013,64509.0,64508.0,0.16027557]
[1721250072020,0.154979,64525.0,64508.0,0.15748157]
[1721250072220,0.587342,64529.0,64509.0,0.002794]
[1721250072221,0.46304871,64523.0,64509.0,0.002794]
[1721250072421,0.1,64522.0,64510.0,0.15438174]
[1721250072636,0.1,64522.0,64511.0,0.002794]
[1721250072839,0.1,64522.0,64512.0,0.02256757]
[1721250072991,0.1,64522.0,64513.0,0.002794]
[1721250073198,0.1,64522.0,64514.0,0.1443]
[1721250073526,0.011,64521.0,64515.0,0.002794]
[1721250073722,0.154981,64524.0,64515.0,0.002794]
[1721250073880,0.154981,64524.0,64516.0,0.03240433]
[1721250074078,0.008,64522.0,64517.0,0.002794]
[1721250074709,0.011,64521.0,64517.0,0.002794]
[1721250074911,0.008,64522.0,64517.0,0.002794]
[1721250075331,0.01,64522.0,64517.0,0.003794]
[1721250075489,0.01,64522.0,64518.0,0.01804983]
[1721250076594,0.254983,64523.0,64518.0,0.01804983]
[1721250077273,0.254983,64523.0,64518.0,0.01904983]
[1721250077479,0.01,64522.0,64518.0,0.01904983]
[1721250077685,0.01,64522.0,64519.0,0.01957542]
[1721250078957,0.265983,64523.0,64519.0,0.01957542]
[1721250079163,0.01,64522.0,64519.0,0.02057542]
[1721250079588,0.265983,64523.0,64519.0,0.01957542]
[1721250079783,0.008,64522.0,64519.0,0.02057542]
[1721250080208,1.362333,64520.0,64519.0,0.001]
[1721250080415,1.385333,64520.0,64519.0,0.001]
[1721250080624,1.485333,64520.0,64519.0,0.002]
[1721250081042,0.155006,64514.0,64510.0,0.0619]
[1721250081258,0.255008,64513.0,64511.0,0.01405]
[1721250081466,0.465028,64512.0,64511.0,0.01405]
[1721250081663,0.465028,64512.0,64494.0,0.002794]
[1721250081664,0.155024,64506.0,64505.0,0.0619]
[1721250081833,0.255024,64506.0,64505.0,0.0619]
[1721250082659,0.1,64506.0,64505.0,0.0619]
[1721250083229,0.255024,64506.0,64505.0,0.07595]
[1721250083439,0.256024,64506.0,64505.0,0.08495]
[1721250083865,0.256024,64506.0,64505.0,0.0709]
[1721250084287,0.255024,64506.0,64505.0,0.0619]
[1721250084492,0.255024,64506.0,64505.0,0.0689]
[1721250084693,0.256024,64506.0,64505.0,0.0689]
[1721250084912,0.257024,64506.0,64505.0,0.09165]
[1721250085133,0.256024,64506.0,64505.0,0.08365]
[1721250085362,0.255024,64506.0,64505.0,0.07665]
[1721250085572,0.255024,64506.0,64505.0,0.08065]
[1721250087434,0.565072,64506.0,64505.0,0.0679]
[1721250088714,1.185168,64506.0,64505.0,0.004]
[1721250088936,0.155053,64494.0,64493.0,0.076]
[1721250089141,0.155053,64494.0,64491.0,0.0602]
[1721250089142,0.465172,64492.0,64491.0,0.0602]
[1721250089354,0.565172,64492.0,64491.0,0.0602]
[1721250089565,0.565172,64492.0,64487.0,0.076]
[1721250089566,0.15478173,64488.0,64487.0,0.1362]
[1721250089776,0.15478173,64488.0,64487.0,0.1550285]
[1721250089777,0.77505173,64488.0,64487.0,0.1550285]
[1721250089980,0.87505173,64488.0,64487.0,0.1550285]
[1721250090411,0.56491673,64488.0,64487.0,0.1550285]
[1721250090629,0.56491673,64488.0,64486.0,0.0429]
[1721250090630,0.77535,64487.0,64486.0,0.0429]
[1721250090838,1.33987174,64487.0,64486.0,0.0429]
[1721250091085,1.77940967,64487.0,64486.0,0.0429]
[1721250091518,2.02678924,64487.0,64486.0,0.0429]
[1721250091724,2.02678924,64487.0,64476.0,0.1]
[1721250091725,1.085658,64477.0,64476.0,0.1]
[1721250091930,1.59123767,64477.0,64476.0,0.1]
[1721250092156,1.69132556,64477.0,64476.0,0.1]
[1721250092378,2.03011356,64477.0,64476.0,0.1]
[1721250092591,2.11321356,64477.0,64476.0,0.1]
[1721250093242,1.89141356,64477.0,64476.0,0.1]
[1721250094101,1.89241356,64477.0,64476.0,0.1]
[1721250094323,2.17011356,64477.0,64476.0,0.1]
[1721250094535,2.16911356,64477.0,64476.0,0.1]
[1721250094958,2.18311356,64477.0,64476.0,0.101]
[1721250095371,2.43049313,64477.0,64476.0,0.101]
[1721250095576,2.4695301,64477.0,64476.0,0.101]
[1721250095765,2.16679313,64477.0,64476.0,0.101]
[1721250096308,2.17203161,64477.0,64476.0,0.101]
[1721250096543,2.05671901,64477.0,64476.0,0.101]
[1721250096741,2.01768204,64477.0,64476.0,0.101]
[1721250097802,1.48406974,64477.0,64476.0,0.101]
[1721250097992,1.213658,64477.0,64476.0,0.101]
[1721250098754,0.90347,64477.0,64476.0,0.101]
[1721250098978,0.87547,64477.0,64476.0,0.1]
[1721250099360,0.88947,64477.0,64476.0,0.1]
[1721250100439,0.90347,64477.0,64476.0,0.101]
[1721250100824,0.88947,64477.0,64476.0,0.1]
[1721250101057,0.87547,64477.0,64476.0,0.1]
[1721250101260,0.90347,64477.0,64476.0,0.101]
[1721250102230,1.05785174,64477.0,64476.0,0.101]
[1721250102435,1.08085174,64477.0,64476.0,0.101]
[1721250102657,1.39103974,64477.0,64476.0,0.101]
[1721250105203,1.54538931,64477.0,64476.0,0.101]
[1721250105809,1.54510404,64477.0,64476.0,0.101]
[1721250106217,1.39075447,64477.0,64476.0,0.101]
[1721250106832,1.08056647,64477.0,64476.0,0.101]
[1721250107395,1.39075447,64477.0,64476.0,0.101]
[1721250109256,1.70094247,64477.0,64476.0,0.101]
[1721250109503,1.39075447,64477.0,64476.0,0.101]
[1721250110247,1.50270782,64477.0,64476.0,0.101]
[1721250111853,1.50276325,64477.0,64476.0,0.101]
[1721250112238,1.81295125,64477.0,64476.0,0.101]
[1721250112931,1.50276325,64477.0,64476.0,0.101]
[1721250114478,1.39075447,64477.0,64476.0,0.101]
[1721250114678,1.50275599,64477.0,64476.0,0.101]
[1721250114880,1.50274275,64477.0,64476.0,0.101]
[1721250115726,1.01517301,64477.0,64476.0,0.1643]
[1721250116145,0.90318473,64477.0,64476.0,0.1643]
[1721250116499,1.23734011,64477.0,64476.0,0.1643]
[1721250117939,1.2378544,64477.0,64476.0,0.1643]
[1721250118419,1.12528473,64477.0,64476.0,0.1643]
[1721250118576,1.23784993,64477.0,64476.0,0.1643]
[1721250118953,1.23793193,64477.0,64476.0,0.1643]
[1721250120533,1.54811993,64477.0,64476.0,0.1643]
[1721250120961,2.5510232,64477.0,64476.0,0.101]
[1721250121163,2.5510232,64477.0,64470.0,0.0146471]
[1721250121166,0.155108,64471.0,64470.0,0.0146471]
[1721250121355,1.36805174,64471.0,64470.0,0.0146471]
[1721250121555,2.24500086,64471.0,64470.0,0.0146471]
[1721250122317,2.29500086,64471.0,64470.0,0.0146471]
[1721250122517,2.24500086,64471.0,64470.0,0.0146471]
[1721250122935,2.25200086,64471.0,64470.0,0.0146471]
[1721250123237,2.28054422,64471.0,64470.0,0.0146471]
[1721250123438,2.18029056,64471.0,64470.0,0.0146471]
[1721250123655,2.29517637,64471.0,64470.0,0.0146471]
[1721250124049,2.30217637,64471.0,64470.0,0.0146471]
[1721250124438,2.31617637,64471.0,64470.0,0.0146471]
[1721250124847,1.91293037,64471.0,64470.0,0.0146471]
[1721250125052,1.88865562,64471.0,64470.0,0.0146471]
[1721250125255,1.91292944,64471.0,64470.0,0.0146471]
[1721250125664,1.91264376,64471.0,64470.0,0.0146471]
[1721250126644,1.76090358,64471.0,64470.0,0.0146471]
[1721250126844,1.91614672,64471.0,64470.0,0.0146471]
[1721250128269,2.22636272,64471.0,64470.0,0.0146471]
[1721250128420,2.00917672,64471.0,64470.0,0.0146471]
[1721250128622,2.31939272,64471.0,64470.0,0.0146471]
[1721250128824,2.47374229,64471.0,64470.0,0.0146471]
[1721250129267,2.83395829,64471.0,64470.0,0.0146471]
[1721250129503,2.83395829,64471.0,64466.0,0.1]
[1721250129504,1.489092,64467.0,64466.0,0.1]
[1721250129706,2.07077056,64467.0,64466.0,0.1]
[1721250130520,2.07977056,64467.0,64466.0,0.1]
[1721250130733,2.08877056,64467.0,64466.0,0.1]
[1721250131933,1.77853456,64467.0,64466.0,0.1]
[1721250132136,1.75553456,64467.0,64466.0,0.1]
[1721250132336,1.75553456,64467.0,64466.0,0.1605]
[1721250132337,1.12936082,64467.0,64466.0,0.1605]
[1721250132540,1.12936082,64467.0,64466.0,0.2407]
[1721250132784,1.1108634,64467.0,64466.0,0.2407]
[1721250133185,1.4210994,64467.0,64466.0,0.2407]
[1721250133389,1.57548114,64467.0,64466.0,0.1]
[1721250133562,1.73113585,64467.0,64466.0,0.1]
[1721250134372,1.59848114,64467.0,64466.0,0.1]
[1721250134789,1.75467836,64467.0,64466.0,0.1]
[1721250135559,1.47423774,64467.0,64466.0,0.1]
[1721250135812,1.75510964,64467.0,64466.0,0.1]
[1721250135994,1.47423774,64467.0,64466.0,0.1]
[1721250136195,2.06533816,64467.0,64466.0,0.1]
[1721250136685,2.06419083,64467.0,64466.0,0.1]
[1721250136896,2.11029881,64467.0,64466.0,0.1]
[1721250137095,2.13457414,64467.0,64466.0,0.1]
[1721250137308,1.75395483,64467.0,64466.0,0.1]
[1721250137510,1.82434058,64467.0,64466.0,0.1]
[1721250137739,1.43868307,64467.0,64466.0,0.1]
[1721250137965,1.57660202,64467.0,64466.0,0.1]
[1721250138137,1.43868242,64467.0,64466.0,0.1]
[1721250138948,1.43853708,64467.0,64466.0,0.1]
[1721250139323,1.46614727,64467.0,64466.0,0.1]
[1721250140335,1.42003595,64467.0,64466.0,0.1]
[1721250141031,1.46614727,64467.0,64466.0,0.1]
[1721250141365,1.42003595,64467.0,64466.0,0.1]
[1721250141969,1.29530505,64467.0,64466.0,0.1]
[1721250142175,1.42009272,64467.0,64466.0,0.1]
[1721250142386,1.64358563,64467.0,64466.0,0.1]
[1721250142551,1.59747446,64467.0,64466.0,0.1]
[1721250143149,1.66664145,64467.0,64466.0,0.1]
[1721250143305,1.9319848,64467.0,64466.0,0.1]
[1721250144319,0.59303,64458.0,64445.0,0.0783]
[1721250144539,0.05,64451.0,64447.0,0.002794]
[1721250144727,0.0792,64452.0,64435.0,0.1]
[1721250144728,0.09303,64447.0,64435.0,0.1]
[1721250144931,1.091092,64436.0,64435.0,0.1]
[1721250145104,2.01384161,64436.0,64435.0,0.1]
[1721250145306,2.16087776,64436.0,64435.0,0.1]
[1721250145503,2.34346936,64436.0,64435.0,0.1]
[1721250146107,2.17401138,64436.0,64435.0,0.1]
[1721250146314,2.61384161,64436.0,64435.0,0.1]
[1721250146508,2.64633358,64436.0,64435.0,0.1]
[1721250147165,2.12784161,64436.0,64435.0,0.1]
[1721250147405,2.69187771,64436.0,64435.0,0.1]
[1721250147610,2.6975135,64436.0,64435.0,0.1]
[1721250147833,2.60541331,64436.0,64435.0,0.1]
[1721250148032,2.72053854,64436.0,64435.0,0.1]
[1721250148164,2.65326685,64436.0,64435.0,0.1]
[1721250148375,2.97056026,64436.0,64435.0,0.1]
[1721250148595,3.09944325,64436.0,64435.0,0.1]
[1721250148804,2.98456026,64436.0,64435.0,0.1]
[1721250149212,3.00115906,64436.0,64435.0,0.1]
[1721250149513,2.94627172,64436.0,64435.0,0.1]
[1721250149695,2.40342335,64436.0,64435.0,0.1]
[1721250149895,2.33453715,64436.0,64435.0,0.1]
[1721250151249,2.33420373,64436.0,64435.0,0.1]
[1721250152039,2.83420373,64436.0,64435.0,0.1]
[1721250152629,1.61369247,64436.0,64435.0,0.1]
[1721250153566,1.28030747,64436.0,64435.0,0.1]
[1721250154269,1.15137374,64436.0,64435.0,0.1]
[1721250154470,1.2802881,64436.0,64435.0,0.1]
[1721250154727,1.15137374,64436.0,64435.0,0.1]
[1721250154905,1.28028849,64436.0,64435.0,0.1]
[1721250155148,1.59067349,64436.0,64435.0,0.1]
[1721250155329,1.28028849,64436.0,64435.0,0.1]
[1721250155529,1.59067349,64436.0,64435.0,0.1]
[1721250155729,1.28028849,64436.0,64435.0,0.1]
[1721250156480,1.59067349,64436.0,64435.0,0.1]
[1721250156687,1.59067349,64436.0,64435.0,0.100913]
[1721250157439,1.46175874,64436.0,64435.0,0.100913]
[1721250157645,1.59067309,64436.0,64435.0,0.100913]
[1721250157850,1.28028809,64436.0,64435.0,0.100913]
[1721250158829,1.59067309,64436.0,64435.0,0.100913]
[1721250159028,1.28028809,64436.0,64435.0,0.100913]
[1721250159630,1.59067309,64436.0,64435.0,0.100913]
[1721250160446,1.28029003,64436.0,64435.0,0.100913]
[1721250160653,1.28029003,64436.0,64403.0,0.1125]
[1721250160654,0.5,64422.0,64403.0,0.1125]
[1721250160853,2.2607485,64406.0,64405.0,0.0416331]
[1721250161123,2.2607485,64406.0,64384.0,0.1]
[1721250161124,1.587208,64385.0,64384.0,0.1]
[1721250161336,3.20713275,64385.0,64384.0,0.09819796]
[1721250161514,3.20713275,64385.0,64366.0,0.0001]
[1721250161515,0.05,64368.0,64366.0,1e-06]
[1721250161716,0.05,64368.0,64330.0,0.0655]
[1721250161717,0.155388,64355.0,64330.0,0.0655]
[1721250161982,1.76212458,64355.0,64330.0,0.0655]
[1721250162198,2.46866758,64355.0,64330.0,0.0655]
[1721250162377,2.59115216,64355.0,64330.0,0.0655]
[1721250162644,2.59115216,64355.0,64313.0,0.1]
[1721250162645,2.55378201,64355.0,64313.0,0.1]
[1721250162863,2.55378201,64355.0,64318.0,0.0643]
[1721250162864,0.63644079,64345.0,64318.0,0.0643]
[1721250163037,1.92441037,64345.0,64318.0,0.0643]
[1721250163300,1.88600457,64345.0,64318.0,0.0643]
[1721250163574,0.79329418,64345.0,64320.0,0.05]
[1721250163754,0.79329418,64345.0,64318.0,0.0643]
[1721250163755,0.70243838,64345.0,64318.0,0.0643]
[1721250163978,1.02518143,64345.0,64318.0,0.0643]
[1721250164196,2.16449683,64345.0,64318.0,0.0643]
[1721250164428,2.16449683,64345.0,64344.0,0.1643]
[1721250164429,1.31349205,64345.0,64344.0,0.1643]
[1721250164648,1.31349205,64345.0,64344.0,0.17576471]
[1721250164649,0.57887431,64345.0,64344.0,0.17576471]
[1721250164881,0.41751627,64345.0,64344.0,0.17576471]
[1721250165105,0.41751627,64345.0,64344.0,0.1643]
[1721250165106,0.58589801,64345.0,64344.0,0.1643]
[1721250165329,0.74726387,64345.0,64344.0,0.1]
[1721250165535,0.59989801,64345.0,64344.0,0.1]
[1721250165959,0.51385477,64345.0,64344.0,0.1]
[1721250166202,0.14483192,64345.0,64344.0,0.1]
[1721250166416,0.42446497,64345.0,64344.0,0.1]
[1721250166631,0.43746497,64345.0,64344.0,0.1]
[1721250166853,0.44246497,64345.0,64344.0,0.1]
[1721250167060,0.42946497,64345.0,64344.0,0.1]
[1721250167274,0.59082233,64345.0,64344.0,0.1]
[1721250167517,0.43346497,64345.0,64344.0,0.1]
[1721250167734,1.61532688,64345.0,64344.0,0.1]
[1721250167941,1.89422688,64345.0,64344.0,0.1]
[1721250168183,1.94422688,64345.0,64344.0,0.1]
[1721250168415,2.51515127,64345.0,64344.0,0.1]
[1721250168630,2.51915127,64345.0,64344.0,0.1]
[1721250168841,2.82997527,64345.0,64344.0,0.1]
[1721250169059,2.83005257,64345.0,64344.0,0.1]
[1721250169309,2.82605257,64345.0,64344.0,0.1]
[1721250169527,2.82605257,64345.0,64333.0,0.1]
[1721250169528,2.041976,64334.0,64333.0,0.1]
[1721250169742,3.20154735,64334.0,64333.0,0.01713317]
[1721250169951,3.32454735,64334.0,64333.0,0.01713317]
[1721250170433,3.32454735,64334.0,64323.0,0.037814]
[1721250170434,2.042192,64324.0,64323.0,0.037814]
[1721250170622,1.109491,64314.0,64313.0,0.1]
[1721250170845,3.30198435,64314.0,64313.0,0.1]
[1721250171073,3.05988396,64314.0,64313.0,0.1]
[1721250171292,2.69890996,64314.0,64313.0,0.1]
[1721250171514,2.77190996,64314.0,64313.0,0.1]
[1721250171733,2.37609494,64314.0,64313.0,0.1]
[1721250171961,2.69905561,64314.0,64313.0,0.095]
[1721250172195,2.84909494,64314.0,64313.0,0.095]
[1721250172411,2.50715177,64314.0,64313.0,0.095]
[1721250172622,3.37588594,64314.0,64313.0,0.095]